Cogmind - Beta 16 @@@ ROGUE MODE // 2026.01.12 @ 20:34:24 Player: Orfs Result: Destroyed by H-66 Slayer with Gauss Rifle Performance ------------- Evolutions (4) 2000 Regions Visited (8) 1600 Robots Destroyed (7) 35 Value Destroyed (264) 264 Prototype IDs (0) 0 Alien Tech Used (0) 0 Bonus (200) 200 TOTAL SCORE: 4099 Bonus ------- Pacifist 200 Cogmind --------- Core Integrity 0/850 Matter 185/300 Energy 23/100 System Corruption 11% Temperature Cool (0) Movement Core (100) Ox1 Location -6/Extension Parts ------- > --- POWER (4) -------- (None) > --- PROPULSION (5) --- (None) > --- UTILITY (4) ------ Advanced Heat Sink Enhanced Optical Array Advanced Signal Interpreter > --- WEAPON (2) ------- Gauss Rifle > --- INVENTORY (5) ---- Advanced ECM Suite Hacking Suite Peak State ------------ > --- POWER ------------ Deuterium Engine Fission Core > --- PROPULSION ------- Flexi-carbon Leg Flexi-carbon Leg Flexi-carbon Leg Cesium-ion Thruster Xenon Bombardment Thruster > --- UTILITY ---------- Advanced Weight Redist. System Enhanced Optical Array Advanced Signal Interpreter > --- WEAPON ----------- Improved EM Pulse Cannon Improved EM Pulse Cannon > --- INVENTORY -------- Angular Momentum Engine Advanced Heat Sink Advanced ECM Suite Hacking Suite Improved Proton Missile Launcher [Rating: 53] Favorites ----------- Power Nuclear Core Engine Deuterium Engine Power Core Nuclear Core Propulsion Flight Unit Treads Medium Treads Leg Flexi-carbon Leg Flight Unit Flight Unit Utility Advanced Weight Redist. System Device Advanced Weight Redist. System Storage Small Storage Unit Processor Advanced Signal Interpreter Hackware System Shield Weapon Datajack Energy Gun EM Pulse Gun Energy Cannon Improved EM Pulse Cannon Ballistic Gun Hypervelocity Gauss Rifle Special Melee Weapon Datajack Build | -11 -10 -10 -8 -7 -7 -7 -6 -6 ------- Run | Yrd Mat Sub Mat Fac Low Low Fac Ext Slots Evolved 8 | . . . 4 2 . . 2 . Power 3 | . . . 1 . . . 2 . Propulsion 3 | . . . 2 1 . . . . Utility 2 | . . . 1 1 . . . . Weapon . | . . . . . . . . . Parts Attached 54 | . 9 1 7 8 . 1 8 20 Power 11 | . 2 1 3 1 . . 3 1 Engine 7 | . 2 1 2 . . . 1 1 Core 4 | . . . 1 1 . . 2 . Reactor . | . . . . . . . . . Propulsion 19 | . 4 . 3 1 . . 2 9 Treads 5 | . . . . . . . . 5 Leg 3 | . . . . . . . . 3 Wheel . | . . . . . . . . . Hover . | . . . . . . . . . Flight 11 | . 4 . 3 1 . . 2 1 Utility 14 | . 2 . . 6 . . 3 3 Device 8 | . . . . 4 . . 1 3 Storage 2 | . 2 . . . . . . . Processor 3 | . . . . 1 . . 2 . Hackware 1 | . . . . 1 . . . . Protection . | . . . . . . . . . Artifact . | . . . . . . . . . Weapon 10 | . 1 . 1 . . 1 . 7 Energy Gun 3 | . 1 . . . . 1 . 1 Energy Cannon 2 | . . . . . . . . 2 Ballistic Gun 4 | . . . . . . . . 4 Ballistic Cannon . | . . . . . . . . . Launcher . | . . . . . . . . . Special Weapon . | . . . . . . . . . Impact Weapon . | . . . . . . . . . Slashing Weapon . | . . . . . . . . . Piercing Weapon . | . . . . . . . . . Special Melee Weapon 1 | . . . 1 . . . . . Unidentified Prototypes . | . . . . . . . . . Corrupted Parts 1 | . . . . . . . . 1 System Corruption 7 | . . . . . . . . 7 Parts Lost 28 | . . . 1 1 1 7 1 17 Power 7 | . . . 1 . . 3 . 3 Propulsion 12 | . . . . 1 1 2 . 8 Utility 4 | . . . . . . . 1 3 Weapon 5 | . . . . . . 2 . 3 Highest Loss Streak 9 | . . . 1 1 1 8 1 9 To Critical Strikes . | . . . . . . . . . Average Backups 5 | 6 7 8 6 4 5 4 4 4 Power . | 1 . . 1 . 1 . . . Propulsion 1 | 4 3 3 1 . . . . . Utility 1 | . 1 . 1 1 2 2 2 3 Weapon 1 | 1 1 2 2 2 2 1 1 . Tool/Special . | . . . . . . . . . Unused Backups 19 | . 11 2 2 1 . . 1 2 Power 3 | . 2 . 1 . . . . . Propulsion 8 | . 7 1 . . . . . . Utility 4 | . . 1 1 1 . . . 1 Weapon 4 | . 2 . . . . . 1 1 Tool/Special . | . . . . . . . . . Average Slot Usage (%) 58 | . 67 57 75 64 75 42 45 46 Engine 6 | . 14 14 13 4 . 1 5 3 Core 5 | . . . 1 9 15 10 5 3 Leg 1 | . 6 . . . . . . 3 Flight 20 | . 21 28 35 30 22 3 7 7 Device 6 | . . . . 7 15 8 12 5 Storage 3 | . 14 14 9 . . . . . Processor 5 | . . . . . 7 7 12 13 Hackware 1 | . . . . 1 7 7 . . Ballistic Gun 1 | . 9 . . . . . . 2 Special Melee Weapon 2 | . . . 8 7 7 1 . . Peak Build Rating 53 | 6 9 5 14 26 24 23 35 53 Average Rating 19 | 6 5 4 10 16 23 16 28 30 On Entrance 13 | 6 6 4 5 11 24 23 10 30 Avg Prop Armor Cover (%) 4 | . . . . . . . . 4 Naked Turns . | . . . . . . . . . Heaviest Build 33 | 11 15 8 16 18 15 15 20 33 Greatest Support 69 | 20 20 8 16 25 21 17 20 69 Greatest Overweight (x) 3 | . 3 . . 1 . 1 2 3 Average Overweight (x) . | . . . . . . . . . Largest Inventory Capacity 10 | 8 10 8 8 8 5 5 5 5 Average Capacity 5 | 8 8 8 8 5 5 5 5 5 Most Carried 10 | 6 10 8 8 7 5 5 5 5 Average Carried 5 | 6 7 7 5 4 5 4 4 4 Final Capacity 8 | 8 8 8 8 5 5 5 5 5 Final Carried 8 | 6 8 8 8 5 5 3 5 2 Class Distribution -------------------- 46% | Mutant 25% | Scavenger-Sprinter 11% | Scout 11% | Scavenger-Mutant 5% | Sprinter Dominant Class ---------------- Mutant | -10/Materials Mutant | -10/Subcaves Sprinter | -8/Materials Scavenger-Sprinter | -7/Factory Scavenger-Mutant | -7/Lower Caves Scavenger-Mutant | -7/Lower Caves Scout | -6/Factory Mutant | -6/Extension Resources | -11 -10 -10 -8 -7 -7 -7 -6 -6 ----------- Run | Yrd Mat Sub Mat Fac Low Low Fac Ext Matter Collected 798 | 200 80 . 31 . 154 . . 333 Remotely 154 | . . . . . 154 . . . Salvage Created 298 | . . . 47 . . . . 251 Parts 20 | . . . 6 . . . . 14 Haulers Intercepted . | . . . . . . . . . Recyclers Shooed . | . . . . . . . . . Parts Field Recycled . | . . . . . . . . . Retrieved Matter . | . . . . . . . . . Parts Self-Destructed 3 | . . . . . . 3 . . Prevented 1 | . . . . . . 1 . . Parts Restored . | . . . . . . . . . Kills | -11 -10 -10 -8 -7 -7 -7 -6 -6 ------- Run | Yrd Mat Sub Mat Fac Low Low Fac Ext Combat Hostiles Destroyed 7 | . . . 3 . . . . 4 Guns 7 | . . . 3 . . . . 4 Classes Destroyed 4 | . . . 1 . . . . 3 Swarmer 3 | . . . 3 . . . . . Sentry 2 | . . . . . . . . 2 Hunter 1 | . . . . . . . . 1 Programmer 1 | . . . . . . . . 1 Best Kill Streak 3 | . . . 3 . . . . 3 Combat Bots Only 3 | . . . 3 . . . . 3 Max Kills in Single Turn 1 | . . . 1 . . . . 1 Gunslinging . | . . . . . . . . . Exploded . | . . . . . . . . . Melee . | . . . . . . . . . Uniques/NPCs Destroyed . | . . . . . . . . . Combat | -11 -10 -10 -8 -7 -7 -7 -6 -6 -------- Run | Yrd Mat Sub Mat Fac Low Low Fac Ext Hostile Shots Fired 406 | . 1 3 35 7 11 46 11 292 Missed 151 | . 1 3 19 2 6 17 4 99 Hits 255 | . . . 16 5 5 29 7 193 Projectile 255 | . . . 16 5 5 29 7 193 Critical Strikes 4 | . . . . . . . . 4 Damage Taken 3420 | . 15 . 133 74 72 451 106 2569 Core 1073 | . . . 13 14 15 166 15 850 Absorbed by Shields 120 | . . . . . . . . 120 Regen/Repaired (Parts) 18 | . . . . 18 . . . . Core Remaining (%) 92 | 100 . 100 97 . . 72 . . Volleys Fired 33 | . . . 9 . . 3 . 21 Largest 2 | . . . 1 . . 1 . 2 Hottest 108 | . . . 40 . . 40 . 108 Shots Fired 43 | . . . 9 . . 3 . 31 Gun 43 | . . . 9 . . 3 . 31 Cannon . | . . . . . . . . . Launcher . | . . . . . . . . . Special . | . . . . . . . . . Kinetic 25 | . . . . . . . . 25 Thermal 6 | . . . . . . . . 6 Explosive . | . . . . . . . . . Electromagnetic 12 | . . . 9 . . 3 . . Robot Hit Streak 5 | . . . 3 . . 1 . 5 Robot Miss Streak 4 | . . . 4 . . 1 . 4 Penetration Max 1 | . . . . . . . . 1 Secondary Targets . | . . . . . . . . . Shots Hit Robots 26 | . . . 4 . . 1 . 21 Core Hits 14 | . . . 3 . . . . 11 Critical Kills 3 | . . . . . . . . 3 Critical Parts Destroyed 1 | . . . . . . . . 1 Critical Strikes 4 | . . . . . . . . 4 Destroy 4 | . . . . . . . . 4 Melee Attacks . | . . . . . . . . . Impact . | . . . . . . . . . Slashing . | . . . . . . . . . Piercing . | . . . . . . . . . Sneak Attacks . | . . . . . . . . . Combat Hostiles . | . . . . . . . . . Follow-up Attacks . | . . . . . . . . . Damage Inflicted 295 | . . . 44 . . 10 . 241 Guns 294 | . . . 44 . . 10 . 240 Cannons . | . . . . . . . . . Explosions . | . . . . . . . . . Melee . | . . . . . . . . . Ramming 1 | . . . . . . . . 1 Kinetic 141 | . . . . . . . . 141 Thermal 99 | . . . . . . . . 99 Explosive . | . . . . . . . . . Electromagnetic 54 | . . . 44 . . 10 . . Impact . | . . . . . . . . . Slashing . | . . . . . . . . . Piercing . | . . . . . . . . . Highest Corruption 11 | . . . . . . . . 11 Average Corruption 7 | . . . . . . . . 7 Corruption Purged . | . . . . . . . . . Corruption Blocked . | . . . . . . . . . Effects 6 | . . . . . . . . 6 Message Errors 1 | . . . . . . . . 1 Matter Fused 2 | . . . . . . . . 2 Parts Rejected 1 | . . . . . . . . 1 Data Loss (minor) 1 | . . . . . . . . 1 Weapon Failures 1 | . . . . . . . . 1 Overload Shots . | . . . . . . . . . Overflow Damage . | . . . . . . . . . Projectiles . | . . . . . . . . . Explosions . | . . . . . . . . . Melee . | . . . . . . . . . Knockbacks . | . . . . . . . . . Impact . | . . . . . . . . . Kinetic . | . . . . . . . . . Secondary . | . . . . . . . . . Self-Inflicted Damage . | . . . . . . . . . Shots . | . . . . . . . . . Rammed 2 | . . . . . . . . 2 Targets Rammed 2 | . . . . . . . . 2 Kicked . | . . . . . . . . . Crushed . | . . . . . . . . . Highest Temperature 32 | . . . 32 4 8 . . . Average Temperature 13 | . . . 14 3 8 . . . Received Heat Transfer 261 | . 6 . 9 9 36 . . 201 Siege Activations . | . . . . . . . . . Martial Activations . | . . . . . . . . . Shielding Activations . | . . . . . . . . . Robots Disrupted . | . . . . . . . . . Combat Hostiles . | . . . . . . . . . Robots Corrupted . | . . . . . . . . . Combat Hostiles . | . . . . . . . . . Parts Fried . | . . . . . . . . . Impact Corruptions . | . . . . . . . . . Robots Melted . | . . . . . . . . . Combat Hostiles . | . . . . . . . . . Parts Melted . | . . . . . . . . . Heat Transferred 200 | . . . . . . . . 200 Parts Sabotaged . | . . . . . . . . . Parts Stolen . | . . . . . . . . . Parts Stripped . | . . . . . . . . . Power Chain Reactions . | . . . . . . . . . Alert | -11 -10 -10 -8 -7 -7 -7 -6 -6 ------- Run | Yrd Mat Sub Mat Fac Low Low Fac Ext Maximum Alert Level . | . . . . . . . . . Low Security (%) 100 | 100 100 . 100 100 . . 100 100 Level 1 . | . . . . . . . . . Level 2 . | . . . . . . . . . Level 3 . | . . . . . . . . . Level 4 . | . . . . . . . . . Level 5 . | . . . . . . . . . High Security . | . . . . . . . . . Max Security . | . . . . . . . . . Peak Influence 80 | . . . 75 29 . . 15 80 Initial 29 | . . . . 29 . . 2 . Average 6 | . . . 34 2 . . 2 10 Influence Increases 417 | . . . 115 2 60 15 35 190 Destroy 0b10 Robot/C 140 | . . . 60 . . . . 80 Destroy Leader 30 | . . . 10 . . . . 20 Successful Hack 7 | . . . . 2 . . 5 . Partial Spotted 30 | . . . 15 . . . 15 . Lose Combat Pursuer 210 | . . . 30 . 60 15 15 90 Influence Decreases 397 | . . . 50 67 60 10 40 170 Entered New Map 39 | . . . . 36 . . 3 . Time Decay 248 | . . . 40 31 60 . 37 80 Lost Part 110 | . . . 10 . . 10 . 90 Squads Dispatched 6 | . 1 . 1 2 . . . 2 Investigation . | . . . . . . . . . Extermination 1 | . . . . 1 . . . . Reinforcement 5 | . 1 . 1 1 . . . 2 Assault . | . . . . . . . . . Garrison . | . . . . . . . . . Intercept . | . . . . . . . . . Searches Triggered . | . . . . . . . . . Construction Impeded . | . . . . . . . . . Haulers Reinforced . | . . . . . . . . . Active Scanning Responses . | . . . . . . . . . Cargo Convoy Interrupts . | . . . . . . . . . Stealth | -11 -10 -10 -8 -7 -7 -7 -6 -6 --------- Run | Yrd Mat Sub Mat Fac Low Low Fac Ext Distress Signals 3 | . . . 2 . . . . 1 Communications Jammed . | . . . . . . . . . Distress Signals . | . . . . . . . . . Times Spotted 71 | . 6 5 15 7 10 6 7 15 Peak Tracking Total 12 | . 3 5 12 6 8 7 7 11 Tactical Retreats 12 | . . 2 1 . 3 1 1 4 Traps | -11 -10 -10 -8 -7 -7 -7 -6 -6 ------- Run | Yrd Mat Sub Mat Fac Low Low Fac Ext Traps Triggered 7 | . 1 . . . . . 2 4 Indirectly . | . . . . . . . . . Trap Hack Attempts . | . . . . . . . . . Triggered . | . . . . . . . . . Disarmed . | . . . . . . . . . Reprogrammed . | . . . . . . . . . Reused . | . . . . . . . . . Traps Extracted . | . . . . . . . . . Installed . | . . . . . . . . . Triggered . | . . . . . . . . . Machines | -11 -10 -10 -8 -7 -7 -7 -6 -6 ---------- Run | Yrd Mat Sub Mat Fac Low Low Fac Ext Machines Disabled . | . . . . . . . . . Max in Single Turn . | . . . . . . . . . Machines Repaired . | . . . . . . . . . Machines Dismantled . | . . . . . . . . . Machines Sabotaged . | . . . . . . . . . Overloaded Fab Kills . | . . . . . . . . . Hacking | -11 -10 -10 -8 -7 -7 -7 -6 -6 --------- Run | Yrd Mat Sub Mat Fac Low Low Fac Ext Machines Accessed 2 | . . . . 1 . . 1 . Terminals 1 | . . . . . . . 1 . Fabricators . | . . . . . . . . . Repair Stations 1 | . . . . 1 . . . . Recycling Units . | . . . . . . . . . Scanalyzers . | . . . . . . . . . Garrison Access . | . . . . . . . . . Total Hacks 4 | . . . . 3 . . 1 . Successful 3 | . . . . 2 . . 1 . Failed 1 | . . . . 1 . . . . Catastrophic . | . . . . . . . . . Database Lockouts . | . . . . . . . . . Manual . | . . . . . . . . . Terminals 1 | . . . . . . . 1 . Fabricators . | . . . . . . . . . Repair Stations 3 | . . . . 3 . . . . Recycling Units . | . . . . . . . . . Scanalyzers . | . . . . . . . . . Garrison Access . | . . . . . . . . . Terminal Hacks 1 | . . . . . . . 1 . Open DSF 1 | . . . . . . . 1 . Fabricator Hacks . | . . . . . . . . . Repair Station Hacks 2 | . . . . 2 . . . . Scan Component 1 | . . . . 1 . . . . Repair 1 | . . . . 1 . . . . Recycling Unit Hacks . | . . . . . . . . . Scanalyzer . | . . . . . . . . . Garrison Access Hacks . | . . . . . . . . . Unauthorized Hacks . | . . . . . . . . . Terminals . | . . . . . . . . . Fabricators . | . . . . . . . . . Repair Stations . | . . . . . . . . . Recycling Units . | . . . . . . . . . Scanalyzers . | . . . . . . . . . Garrison Access . | . . . . . . . . . Data Cores Recovered 1 | . 1 . . . . . . . Used . | . . . . . . . . . Hacking Detections 1 | . . . . 1 . . . . Full Trace Events . | . . . . . . . . . Feedback Events . | . . . . . . . . . Feedback Blocked . | . . . . . . . . . Robot Schematics Acquired . | . . . . . . . . . Robots Built . | . . . . . . . . . Authchips . | . . . . . . . . . Time . | . . . . . . . . . Total Robot Build Rating . | . . . . . . . . . Part Schematics Acquired . | . . . . . . . . . Parts Built . | . . . . . . . . . Authchips . | . . . . . . . . . Time . | . . . . . . . . . Total Part Build Rating . | . . . . . . . . . Part Studies Acquired . | . . . . . . . . . Parts Repaired 1 | . . . . 1 . . . . Time 38 | . . . . 38 . . . . Parts Recycled . | . . . . . . . . . Recycled Matter . | . . . . . . . . . Retrieved Matter . | . . . . . . . . . Retrieved Components . | . . . . . . . . . Parts Scanalyzed . | . . . . . . . . . Part Schematics Acquired . | . . . . . . . . . Parts Damaged . | . . . . . . . . . Bothacking | -11 -10 -10 -8 -7 -7 -7 -6 -6 ------------ Run | Yrd Mat Sub Mat Fac Low Low Fac Ext Used RIF Installer . | . . . . . . . . . Robots Hacked . | . . . . . . . . . Non-combat . | . . . . . . . . . Combat . | . . . . . . . . . Robot Hacks Applied . | . . . . . . . . . Relay Couplers Released . | . . . . . . . . . Fabnet Peak Effective % . | . . . . . . . . . Robots Rewired . | . . . . . . . . . Allies Hacked . | . . . . . . . . . Hacks Repelled . | . . . . . . . . . Allies | -11 -10 -10 -8 -7 -7 -7 -6 -6 -------- Run | Yrd Mat Sub Mat Fac Low Low Fac Ext Total Allies . | . . . . . . . . . Largest Group . | . . . . . . . . . Highest-Rated Group . | . . . . . . . . . Highest-Rated Ally . | . . . . . . . . . Total Orders . | . . . . . . . . . Ally Attacks . | . . . . . . . . . Total Damage . | . . . . . . . . . Kills . | . . . . . . . . . Allies Corrupted . | . . . . . . . . . Allies Melted . | . . . . . . . . . Intel | -11 -10 -10 -8 -7 -7 -7 -6 -6 ------- Run | Yrd Mat Sub Mat Fac Low Low Fac Ext Active Infowar (turns) 1283 | . . . . 358 227 34 300 364 Optics 974 | . . . . 49 227 34 300 364 Sensors 268 | . . . . . . . 268 . ECM 309 | . . . . 309 . . . . Robot Analysis Total . | . . . . . . . . . Derelict Logs Recovered 3 | . . 1 . . 1 1 . . Drone Launches . | . . . . . . . . . Drone Recoveries . | . . . . . . . . . Exploration | -11 -10 -10 -8 -7 -7 -7 -6 -6 ------------- Run | Yrd Mat Sub Mat Fac Low Low Fac Ext Turns Passed 1883 | 10 167 233 109 439 227 34 300 364 Spaces Moved 3194 | 7 277 613 209 347 664 39 605 433 Core 157 | . . . . . . 32 111 14 Treads 46 | . . . . . . . . 46 Legs 79 | 7 19 . . . . . . 53 Wheels . | . . . . . . . . . Hover . | . . . . . . . . . Flight 2912 | . 258 613 209 347 664 7 494 320 Fastest Speed 28 | 120 37 37 31 28 34 37 34 30 Average Speed 41 | 120 47 37 31 31 34 64 42 60 Slowest Speed 280 | 120 280 37 31 114 37 100 150 200 Overloaded Moves . | . . . . . . . . . Propulsion Burnouts . | . . . . . . . . . Robots Hopped 21 | . 5 . 1 5 . 1 1 8 Potential Cave-ins . | . . . . . . . . . Cave-ins Triggered . | . . . . . . . . . Exploration Rate (%) 31 | 2 42 39 26 11 85 11 14 53 Regions Visited 8 Branch Regions 4 Pre-discovered Areas . | . . . . . . . . . Known Exits Taken 1 | . . . . . . . 1 . Unknown Exits Taken 7 | 1 1 1 1 1 1 1 . . Scrap Searched 3 | . . . . . 3 . . . Spaces Dug . | . . . . . . . . . Terrain Destroyed . | . . . . . . . . . Melee . | . . . . . . . . . Projectile . | . . . . . . . . . AOE . | . . . . . . . . . Terrain Rammed . | . . . . . . . . . Walls Destroyed . | . . . . . . . . . Machines Disabled . | . . . . . . . . . Actions | -11 -10 -10 -8 -7 -7 -7 -6 -6 --------- Run | Yrd Mat Sub Mat Fac Low Low Fac Ext Total 3694 | 8 312 618 243 674 663 43 643 490 Wait 331 | 2 1 1 4 303 . . 20 . Move 3147 | 6 267 612 206 337 663 36 602 418 Hop 18 | . 4 . 1 4 . 1 1 7 Pick Up 26 | . 11 1 7 2 . . 4 1 Fast Attach 37 | . 5 . 1 6 . . 9 16 Attach 23 | . 2 . 5 7 . 2 1 6 Detach 12 | . 3 . 1 5 . . 1 2 Swap 13 | . 3 2 4 2 . . 1 1 Drop 42 | . 16 2 5 8 . 1 4 6 Fire 33 | . . . 9 . . 3 . 21 Melee . | . . . . . . . . . Ram . | . . . . . . . . . Kick . | . . . . . . . . . Crush 2 | . . . . . . . . 2 Escape Stasis 10 | . . . . . . . . 10 Rewire . | . . . . . . . . . Trap . | . . . . . . . . . Miscellaneous . | . . . . . . . . . Route ------- -11/Scrapyard -10/Materials (discovered 3 exits: [*Mat x2] / [*Sub]) -10/Subcaves -8/Materials -7/Factory -7/Lower Caves -7/Lower Caves -6/Factory (discovered 2 exits: Fac / *Ext) -6/Extension History --------- Turn | Location | Event 3 | -11/Scrapyard | Discovered new exit (range 3) 11 | -11/Scrapyard | Entered Materials 12 | -10/Materials | Met a group of wandering Federalists 111 | -10/Materials | Discovered new exit (range 12) 154 | -10/Materials | Discovered new exit (range 4) 177 | -10/Materials | Discovered new exit (range 5) 178 | -10/Materials | Entered Subcaves 178 | -10/Subcaves | Accompanied by 1 ally 179 | -10/Subcaves | Continued accompanying wandering Federalists (1) 196 | -10/Subcaves | Learned Materials emergency access door positions 300 | -10/Subcaves | Build established: Mutant 312 | -10/Subcaves | Shifting Twisted Machinery released Scrap Shield 315 | -10/Subcaves | Shifting Twisted Machinery released Sub. Laser 334 | -10/Subcaves | Shifting Twisted Machinery released Battle Cannon 335 | -10/Subcaves | Shifting Twisted Machinery released Sub. Power Source 345 | -10/Subcaves | Discovered new exit (range 10) 411 | -10/Subcaves | Entered Materials 411 | -8/Materials | Evolved 4 slots: Power x1, Propulsion x2, Utility x1 515 | -8/Materials | Discovered new exit (range 16) 520 | -8/Materials | Entered Factory 520 | -7/Factory | Evolved 2 slots: Propulsion x1, Utility x1 762 | -7/Factory | Build established: Scavenger-Sprinter 901 | -7/Factory | Repaired Lgt. Deuterium Engine? 913 | -7/Factory | Discovered new exit (range 11) 959 | -7/Factory | Entered Lower Caves 979 | -7/Lower Caves | Learned 8 Factory zone layouts 1178 | -7/Lower Caves | Attracted the attention of an 0b10 outpost 1183 | -7/Lower Caves | Discovered new exit (range 10) 1186 | -7/Lower Caves | Entered another Lower Caves area 1212 | -7/Lower Caves | Discovered new exit (range 17) 1215 | -7/Lower Caves | Learned 4 Factory zone layouts 1220 | -7/Lower Caves | Entered Factory 1220 | -6/Factory | Evolved 2 slots: Power x2 1221 | -6/Factory | Identified exit to Factory 1249 | -6/Factory | Lost 8 parts (3p3n2w) 1349 | -6/Factory | Identified exit to DSF 1513 | -6/Factory | Discovered new exit (range 13) 1520 | -6/Factory | Identified exit to Extension 1520 | -6/Factory | Entered Extension 1559 | -6/Extension | Spotted B-75 Beast 1705 | -6/Extension | Spotted B-75 Beast 1746 | -6/Extension | Lost 5 parts (2p3n) 1778 | -6/Extension | Lost 3 parts (1p2u) 1803 | -6/Extension | Core integrity fell below 50% 1847 | -6/Extension | Core integrity fell below 20% 1847 | -6/Extension | System corruption reached 10% 1884 | -6/Extension | Destroyed by H-66 Slayer with Gauss Rifle Last Messages --------------- 01846_ Penetrated by Slug. 01846_ Slug penetrates P-60 Hacker. 01847_ Acquired 70 matter. 01850_ Penetrated by Slug. 01850_ Acquired Gatling Laser. 01853_ Acquired Gauss Rifle. 01854_ Penetrated by Slug. 01854_ Slug penetrates Wall. 01856_ Wall collapses. 01857_ Penetrated by Slug. 01857_ Lgt. Treads destroyed. 01860_ Penetrated by Slug. 01865_ System corrupted: Component data lost. 01872_ Slug penetrates Wall. 01878_ P-60 Hacker destroyed. 01878_ Slug penetrates Wall. 01880_ System corrupted: Gatling Laser rejected. 01881_ R-10 Processor collects Gatling Laser. 01882_ Acquired 37 matter. 01884_ Penetrated by Slug. Map ----- +----------------------------------------------------+ | | | | | | | | | | | | | | | | | | | | | | | | | | | | | | | | | | | | | | | | | ?????????????????????????????????????????????????? | | ?????????????????????????????????????????????????? | | ?????????????????????????????????????????????????? | | ?########????????????????????????????????????????? | | ## #??????????????########### "" ??? | | + #??????????????#!@ R T ??? | | ## #??????????????#h######### #?????????? | | ?# #??????????????#[###?????????????????????? | | ?# #?????????##"### # #?????????????????????? | | ?# #?????????# T#" [*"?????????????????????? | | #######+#????????###+##"*# "?????????????????????? | | #??????### !=! # #?????????????????????? | | ####### #??????#"" !! #?#?????????????????????? | | ??????# #??????#"" % #???????????????????????? | | ??????# #??????#"T = #???????????????????????? | | ??????# #??????#"" #???????????????????????? | | ??????# #??????#"" ! #???????????????????????? | | ??????# #??????### ! ##T#????????????????????? | | ??????# #????????# ! "????????????????????? | | ????### #????????# ###????????????????????? | | ????#T# #????????# #??????????????????????? | | ????" #????????# ########??????????????????????? | | ????### #????????# #?????????????????????????????? | | ??????# #????????# #?????????????????????????????? | | ??????# #????????# #?????????????????????????????? | | ??????# #????????# #?????????????????????????????? | | ??????# #????????# #?????????????????????????????? | | ??????# #????????# #?????????????????????????????? | | ??????# #????????# #?????????????????????????????? | | ??????# #????????# #?????????????????????????????? | +----------------------------------------------------+ Best States ------------- Heat Dissipation 56 Energy Generation 27 Energy Capacity 485 Matter Stores 300 Matter Capacity 300 Sight Range 22 Robot Scan Range 16 Terrain Scan Density 10 ECM Strength 2 Additional Mass Support 9 Evasion (%) 64 Recoil Reduction 2 Defensive Hacking 10 Item Schematics ----------------- None Robot Schematics ------------------ None Fabricated ------------ Nothing Repaired ---------- Lgt. Deuterium Engine | 64% | -7/Factory Studied --------- None Alien Tech Used ----------------- None Achievements -------------- A Problem For Future Me For Emergencies Only Ghost 'Em I Have A Map? Spot Them First Strength In Numbers Challenges ------------ None Game ------ Seed WeldingCargoShovel Manual? 0 Play Time 01:07:36 Cumulative 14.7 hours Start 2026.01.11 @ 14:37:54 End 2026.01.12 @ 20:34:24 Sessions 2 Manual Loads 0 Difficulty Rogue Special Mode None Game No. 38 Rogue 38 Adventurer 0 Explorer 0 Win Type - Total 0 Types 0/0/0/0/0/0/0/0/0/0 Lore% 12 Gallery% 21 Achievement% 12 Wizard Run 0 Options --------- Layout 1 ASCII 0 Keyboard 0 Movement Numpad Keybinds 0 Fullscreen 2 Font 20/SmallcapsGlow Map View 64x42 Zoom Use 0% Tactical HUD 1 Map Filters NONE Filters NONE Steam 1 RUN: 305685ae-0c7a-4df9-b706-afa3680214e9